bitfinex/quotes_BTCUSD_20241216
["timestamp","ask_amount","ask_price","bid_price","bid_amount"]
[1734378207471,0.31511456,106230.0,106200.0,0.21659196]
[1734378207709,0.19043545,106230.0,106200.0,0.21659196]
[1734378207910,0.029178,106220.0,106200.0,0.0942907]
[1734378208110,0.31629142,106230.0,106200.0,0.0942907]
[1734378208360,0.31511456,106230.0,106200.0,0.0942907]
[1734378208566,0.31511456,106230.0,106200.0,0.09476261]
[1734378208567,0.19043545,106230.0,106200.0,0.09476261]
[1734378208787,0.19161227,106230.0,106200.0,0.09476261]
[1734378209115,0.10849286,106230.0,106200.0,0.0942907]
[1734378210285,0.31673563,106230.0,106200.0,0.21659196]
[1734378210540,0.48215303,106230.0,106200.0,0.21659196]
[1734378211020,0.48215303,106230.0,106200.0,0.0942907]
[1734378211497,0.08329711,106220.0,106200.0,0.0942907]
[1734378212277,0.48215303,106230.0,106200.0,0.0942907]
[1734378213476,0.31555881,106230.0,106200.0,0.0942907]
[1734378213731,0.48215303,106230.0,106200.0,0.0942907]
[1734378213985,0.48215303,106230.0,106200.0,0.21659196]
[1734378214237,0.08403515,106230.0,106220.0,0.12230126]
[1734378214447,0.00073804,106230.0,106220.0,0.12230126]
[1734378214667,0.00073804,106230.0,106220.0,0.56959322]
[1734378214899,0.00073804,106230.0,106220.0,0.64049322]
[1734378215166,0.00073804,106230.0,106220.0,0.51819196]
[1734378217336,0.00073804,106230.0,106220.0,0.32921644]
[1734378218653,0.00073804,106230.0,106220.0,0.36698409]
[1734378219283,0.00073804,106230.0,106220.0,0.51698409]
[1734378222189,0.00073804,106230.0,106220.0,0.03776765]
[1734378222622,0.00073804,106230.0,106200.0,0.24928766]
[1734378222833,0.00073804,106230.0,106210.0,0.0942907]
[1734378223040,0.00073804,106230.0,106210.0,0.21659196]
[1734378225986,0.00073804,106230.0,106220.0,0.12230126]
[1734378226205,0.00073804,106230.0,106220.0,0.12277267]
[1734378226424,0.00073804,106230.0,106220.0,0.36706314]
[1734378226626,0.00073804,106230.0,106220.0,0.36659196]
[1734378227252,0.00073804,106230.0,106220.0,0.15]
[1734378227677,0.00073804,106230.0,106220.0,0.27230126]
[1734378230482,0.00073804,106230.0,106220.0,0.36659196]
[1734378231351,4e-08,106230.0,106220.0,0.36659196]
[1734378232616,4e-08,106230.0,106220.0,0.40478816]
[1734378234107,4e-08,106230.0,106220.0,0.31049746]
[1734378234948,0.37499708,106260.0,106230.0,0.173]
[1734378234949,8e-07,106260.0,106230.0,0.173]
[1734378235160,8e-07,106260.0,106250.0,0.27230126]
[1734378235369,8e-07,106260.0,106250.0,0.36659196]
[1734378235585,0.0487,106290.0,106250.0,0.36659196]
[1734378235586,0.160278,106290.0,106260.0,0.15]
[1734378235796,0.111578,106290.0,106270.0,0.12230126]
[1734378237064,0.11174755,106290.0,106270.0,0.12230126]
[1734378237909,0.00016955,106290.0,106280.0,0.21659196]
[1734378238370,0.00016955,106290.0,106280.0,0.36659196]
[1734378240938,0.00016955,106290.0,106280.0,0.51189322]
[1734378241386,0.00016955,106290.0,106280.0,0.53271522]
[1734378241605,0.00016955,106290.0,106280.0,0.61411522]
[1734378242127,0.00016955,106290.0,106280.0,0.60911522]
[1734378243398,0.00016955,106290.0,106280.0,0.64678419]
[1734378244224,0.00016955,106290.0,106280.0,0.69488419]
[1734378244464,0.0041728,106290.0,106280.0,0.69488419]
[1734378244677,0.0041728,106290.0,106280.0,0.67406219]
[1734378244886,0.0041728,106290.0,106280.0,0.55176093]
[1734378245951,0.0041728,106290.0,106280.0,0.67406219]
[1734378247607,0.0041728,106290.0,106280.0,0.55176093]
[1734378247815,0.0041728,106290.0,106280.0,0.47036093]
[1734378248024,0.0041728,106290.0,106280.0,0.42226093]
[1734378249104,0.0041728,106290.0,106280.0,0.54456219]
[1734378249314,0.0041728,106290.0,106280.0,0.42226093]
[1734378253427,0.0041728,106290.0,106280.0,0.03766897]
[1734378253651,0.0041728,106290.0,106280.0,0.25426093]
[1734378253869,0.0041728,106290.0,106280.0,0.2260778]
[1734378254084,0.0041728,106290.0,106280.0,0.33889322]
[1734378254288,0.0041728,106290.0,106280.0,0.21659196]
[1734378254515,0.0041728,106290.0,106280.0,0.36659196]
[1734378254720,0.0041728,106290.0,106280.0,0.38959196]
[1734378255986,0.0041728,106290.0,106280.0,0.36659196]
[1734378256198,0.0041728,106290.0,106280.0,0.36667826]
[1734378258482,0.0782,106310.0,106290.0,0.15]
[1734378258697,0.1598644,106330.0,106310.0,0.15]
[1734378258905,0.1308562,106330.0,106310.0,0.27230126]
[1734378259118,0.1600342,106330.0,106310.0,0.27230126]
[1734378260690,0.1600342,106330.0,106300.0,0.36659196]
[1734378260933,0.1308562,106330.0,106310.0,0.12230126]
[1734378261148,0.0820562,106330.0,106320.0,0.12230126]
[1734378261978,0.029351,106340.0,106330.0,0.170822]
[1734378261979,0.000173,106340.0,106330.0,0.170822]
[1734378262183,0.51023481,106370.0,106330.0,0.41041396]
[1734378262397,0.03035312,106360.0,106330.0,0.36659196]
[1734378262603,0.0829,106350.0,106330.0,0.2442907]
[1734378262831,0.0829,106350.0,106330.0,0.36659196]
[1734378264149,0.0829,106350.0,106330.0,0.21659196]
[1734378264761,0.0829,106350.0,106340.0,0.12230126]
[1734378267947,0.0767,106360.0,106340.0,0.21659196]
[1734378268154,0.0767,106360.0,106350.0,0.12230126]
[1734378268794,0.07704246,106370.0,106350.0,0.12230126]
[1734378268994,0.10622046,106370.0,106350.0,0.12230126]
[1734378269340,0.10622046,106370.0,106340.0,0.21659196]
[1734378269776,0.10622046,106370.0,106340.0,0.12230126]
[1734378269991,0.10622046,106370.0,106350.0,0.12230126]
[1734378274476,0.10622046,106370.0,106340.0,0.12230126]
[1734378274702,0.10622046,106370.0,106350.0,0.15]
[1734378275117,0.02952046,106370.0,106350.0,0.15]
[1734378275333,0.108878,106360.0,106330.0,0.16063622]
[1734378275547,0.108878,106360.0,106340.0,0.27230126]
[1734378275765,0.108878,106360.0,106330.0,0.0942907]
[1734378275968,0.108878,106360.0,106330.0,0.21659196]
[1734378277292,0.11005332,106360.0,106330.0,0.21659196]
[1734378278081,0.029178,106340.0,106320.0,0.03822915]
[1734378278287,0.029178,106340.0,106310.0,0.12230126]
[1734378278288,0.03035347,106340.0,106310.0,0.12230126]
[1734378278517,0.0774,106330.0,106310.0,0.21659196]
[1734378278687,0.0774,106330.0,106320.0,0.12230126]
[1734378278894,0.03035347,106340.0,106310.0,0.21659196]
[1734378279096,0.155978,106350.0,106330.0,0.12230126]
[1734378279508,0.155978,106350.0,106330.0,0.12247386]
[1734378279903,0.155978,106350.0,106330.0,0.12303973]
[1734378280315,0.15715341,106350.0,106330.0,0.12303973]
[1734378280521,0.155978,106350.0,106330.0,0.00073847]
[1734378281146,0.029178,106340.0,106330.0,0.00073847]
[1734378281354,0.03035341,106340.0,106330.0,0.00073847]
[1734378283456,0.36337747,106350.0,106330.0,0.12303973]
[1734378283630,0.029178,106340.0,106330.0,0.00073847]
[1734378284044,0.029178,106340.0,106330.0,0.03942948]
[1734378284249,0.029178,106340.0,106330.0,0.00073847]
[1734378284440,0.20975979,106350.0,106330.0,0.21733043]
[1734378284698,0.1268,106350.0,106330.0,0.21733043]
[1734378285333,0.0811,106350.0,106330.0,0.21733043]
[1734378287570,0.0811,106350.0,106330.0,0.09502917]
[1734378289429,0.01145335,106360.0,106330.0,0.09502917]
[1734378290009,0.08298784,106370.0,106330.0,0.09502917]
[1734378290204,0.00070646,106360.0,106330.0,0.09502917]
[1734378290420,0.17727854,106370.0,106330.0,0.09502917]
[1734378290421,0.077985,106370.0,106330.0,0.09502917]
[1734378290797,0.0942907,106370.0,106330.0,0.09596944]
[1734378291006,0.02531626,106360.0,106330.0,0.09502917]
[1734378291410,0.00251626,106360.0,106310.0,0.2681071]
[1734378291623,0.09416074,106360.0,106320.0,0.09523108]
[1734378292086,0.516462,106370.0,106330.0,0.0001726]
[1734378292331,0.8758961,106370.0,106330.0,0.0001726]
[1734378292578,0.87606576,106370.0,106330.0,0.0001726]
[1734378293279,0.0467,106360.0,106330.0,0.0001726]
[1734378294099,0.31826624,106370.0,106330.0,0.0001726]
[1734378294357,0.21826624,106370.0,106330.0,0.0001726]
[1734378294594,0.29085694,106370.0,106330.0,0.0001726]
[1734378294845,0.41035926,106350.0,106330.0,0.0001726]
[1734378295052,0.42695122,106350.0,106330.0,0.0001726]
[1734378295264,0.26659196,106350.0,106330.0,0.0001726]
[1734378295729,0.56088266,106350.0,106330.0,0.0001726]
[1734378295943,0.58318392,106350.0,106330.0,0.0001726]
[1734378296168,0.12230126,106340.0,106330.0,0.0001726]
[1734378296371,0.77125192,106350.0,106330.0,0.0001726]
[1734378296581,0.67125192,106350.0,106330.0,0.0001726]
[1734378296800,0.30465996,106350.0,106330.0,0.0001726]
[1734378297011,0.12230126,106350.0,106330.0,0.0001726]
[1734378297216,0.21036626,106350.0,106330.0,0.0001726]
[1734378297428,0.738052,106360.0,106330.0,0.0001726]
[1734378297633,0.4,106340.0,106330.0,0.0001726]
[1734378297841,0.3,106340.0,106330.0,0.0001726]
[1734378298052,0.2,106340.0,106330.0,0.0001726]
[1734378298264,0.1,106340.0,106330.0,0.0001726]
[1734378298468,0.0752,106350.0,106330.0,0.0001726]
[1734378298673,0.12230126,106350.0,106330.0,0.0001726]
[1734378298876,0.6305242,106360.0,106330.0,0.0001726]
[1734378299076,0.12230126,106350.0,106330.0,0.0001726]
[1734378299315,0.02230126,106350.0,106330.0,0.0001726]
[1734378299520,0.12230126,106350.0,106330.0,0.0001726]
[1734378299729,0.02230126,106350.0,106330.0,0.0001726]
[1734378299928,0.15780126,106350.0,106330.0,0.0001726]
[1734378300136,0.05780126,106350.0,106330.0,0.0001726]
[1734378300339,0.24673332,106350.0,106330.0,0.0001726]
[1734378300541,0.22974774,106350.0,106330.0,0.0001726]
[1734378300745,0.252049,106350.0,106330.0,0.0001726]
[1734378300951,0.152049,106350.0,106330.0,0.0001726]
[1734378301154,0.76419578,106360.0,106330.0,0.0001726]
[1734378301358,0.4859281,106360.0,106330.0,0.0001726]
[1734378301562,0.6739821,106360.0,106330.0,0.0001726]
[1734378301793,0.5346821,106360.0,106330.0,0.0001726]
[1734378302000,0.376108,106360.0,106330.0,0.0001726]
[1734378302201,0.188054,106360.0,106330.0,0.0001726]
[1734378302405,0.15,106360.0,106330.0,0.0001726]
[1734378302817,0.15,106360.0,106340.0,0.12230126]
[1734378303026,0.15,106360.0,106330.0,0.21676456]
[1734378304092,0.00506639,106370.0,106350.0,0.12230126]
[1734378304306,0.00016966,106370.0,106350.0,0.21659196]
[1734378304523,0.00016966,106370.0,106360.0,0.12230126]
[1734378304733,0.00016966,106370.0,106360.0,0.0942907]
[1734378307323,0.00016966,106370.0,106360.0,0.1130947]
[1734378309857,0.00016966,106370.0,106360.0,0.23539596]
[1734378310486,0.00016966,106370.0,106360.0,0.1130947]
[1734378312468,0.08335829,106370.0,106360.0,0.1130947]
[1734378313103,0.20814125,106370.0,106360.0,0.018804]
[1734378313511,0.37451853,106370.0,106360.0,0.018804]
[1734378314403,0.37851853,106370.0,106360.0,0.018804]
[1734378314816,0.21214125,106370.0,106360.0,0.018804]
[1734378315278,0.21214125,106370.0,106340.0,0.16449681]
[1734378315478,0.21214125,106370.0,106350.0,0.1130957]
[1734378315682,0.21211633,106370.0,106360.0,0.018804]
[1734378316722,0.21220253,106370.0,106360.0,0.018804]
[1734378318086,0.40022453,106370.0,106350.0,0.056413]
[1734378318293,0.20794667,106360.0,106350.0,0.018804]
[1734378318503,0.20794667,106360.0,106350.0,0.018805]
[1734378318784,0.37430401,106360.0,106350.0,0.018805]
[1734378318929,0.29112534,106360.0,106350.0,0.018805]
[1734378319145,0.34432534,106360.0,106340.0,0.037612]
[1734378319315,0.08321488,106350.0,106340.0,0.018806]
[1734378319858,0.20798288,106350.0,106340.0,0.018806]
[1734378320264,0.20806483,106350.0,106340.0,0.018806]
[1734378321798,0.08322593,106350.0,106340.0,0.48459922]
[1734378322049,0.00425586,106370.0,106360.0,0.018804]
[1734378322275,0.00425586,106370.0,106360.0,0.1130947]
[1734378322523,0.00425586,106370.0,106360.0,0.018804]
[1734378322727,0.08748179,106370.0,106360.0,0.018804]
[1734378324034,0.08748179,106370.0,106360.0,0.23539596]
[1734378324168,0.00425586,106370.0,106360.0,0.23539596]
[1734378324785,0.00425586,106370.0,106360.0,0.018804]
[1734378324985,0.08748179,106370.0,106360.0,0.018804]
[1734378325217,0.21232069,106370.0,106360.0,0.14110526]
[1734378325572,0.00425586,106370.0,106360.0,0.14110526]
[1734378326601,0.00425586,106370.0,106360.0,0.23539596]
[1734378327037,0.08748179,106370.0,106360.0,0.23539596]
[1734378327241,0.00425586,106370.0,106360.0,0.23539596]
[1734378327586,0.08748179,106370.0,106360.0,0.23539596]
[1734378327785,0.00425586,106370.0,106360.0,0.23539596]
[1734378329122,0.00425586,106370.0,106360.0,0.31229596]
[1734378329327,0.00425586,106370.0,106360.0,0.36159596]
[1734378329944,0.00425586,106370.0,106360.0,0.56159596]
[1734378331074,0.00425586,106370.0,106360.0,0.61159596]
[1734378333251,0.00425586,106370.0,106360.0,0.4392947]
[1734378333460,0.00425586,106370.0,106360.0,0.51159596]
[1734378333707,0.00425586,106370.0,106360.0,0.39912947]
[1734378335643,0.0001728,106400.0,106390.0,0.066998]
[1734378335802,0.0001728,106400.0,106390.0,0.1612887]
[1734378336018,0.0001728,106400.0,106390.0,0.53229122]
[1734378336225,8e-07,106400.0,106390.0,0.68229122]
[1734378336385,8e-07,106400.0,106390.0,0.73229122]
[1734378336602,8e-07,106400.0,106390.0,0.60998996]
[1734378336807,8e-07,106400.0,106390.0,0.61146472]
[1734378337069,8e-07,106400.0,106390.0,0.76018424]
[1734378337567,8e-07,106400.0,106390.0,0.63788298]
[1734378337689,8e-07,106400.0,106390.0,0.76018424]
[1734378339689,8e-07,106400.0,106390.0,0.63788298]
[1734378340133,8e-07,106400.0,106390.0,0.60998996]
[1734378340719,8e-07,106400.0,106390.0,0.63859814]
[1734378340922,8e-07,106400.0,106390.0,0.60998996]
[1734378343660,8e-07,106400.0,106390.0,0.76959919]
[1734378343871,0.0158297,106420.0,106410.0,0.47190252]
[1734378344077,0.01599933,106420.0,106410.0,0.68498822]
[1734378344282,0.01599933,106420.0,106410.0,0.73038822]
[1734378344701,0.01599933,106420.0,106410.0,0.60808696]
[1734378345266,0.01599933,106420.0,106410.0,0.73038822]
[1734378345638,0.01599933,106420.0,106410.0,0.55808696]
[1734378345838,0.01599933,106420.0,106410.0,0.73038822]
[1734378346406,0.01599933,106420.0,106410.0,0.55808696]
[1734378346608,0.01599933,106420.0,106410.0,0.3857857]
[1734378346823,0.01599933,106420.0,106410.0,0.1903857]
[1734378347028,0.01599933,106420.0,106410.0,0.018795]
[1734378347644,0.01599933,106420.0,106390.0,0.018798]
[1734378347799,0.01599933,106420.0,106390.0,0.1130887]
[1734378347997,0.01599933,106420.0,106400.0,0.018795]
[1734378349231,0.20393433,106420.0,106400.0,0.018795]
[1734378349434,0.01599933,106420.0,106400.0,0.018795]
[1734378350107,0.01599933,106420.0,106400.0,0.1130857]
[1734378350690,0.01599933,106420.0,106410.0,0.018795]
[1734378352070,0.01599933,106420.0,106410.0,0.1130857]
[1734378352571,0.01608553,106420.0,106410.0,0.1130857]
[1734378353921,0.01608553,106420.0,106410.0,0.018795]
[1734378354127,0.01608553,106420.0,106410.0,0.02802464]
[1734378354337,0.01608553,106420.0,106410.0,0.018795]
[1734378357098,0.08318553,106420.0,106400.0,0.03759]
[1734378357726,0.35420865,106420.0,106400.0,0.056386]
[1734378357942,0.42278616,106420.0,106400.0,0.03759]
[1734378358151,0.47884233,106420.0,106400.0,0.056386]
[1734378358625,0.47884233,106420.0,106400.0,0.03759]
[1734378358861,0.31025426,106410.0,106390.0,0.0197788]
[1734378359093,0.08308912,106410.0,106380.0,0.0189704]
[1734378359271,0.70528658,106420.0,106410.0,0.018795]
[1734378359534,0.53910833,106420.0,106400.0,0.018795]
[1734378359763,0.53910833,106420.0,106400.0,0.03759]
[1734378359764,0.91497633,106420.0,106400.0,0.03759]
[1734378359968,0.08308912,106410.0,106400.0,0.018795]
[1734378360182,0.27104112,106410.0,106390.0,0.037594]
[1734378360394,0.375949,106400.0,106380.0,0.0189704]
[1734378360603,0.33816012,106400.0,106380.0,0.0189704]
[1734378360813,0.255071,106400.0,106380.0,0.0189704]
[1734378361030,0.65082088,106400.0,106380.0,0.0377694]
[1734378361242,0.81703839,106400.0,106380.0,0.0377694]
[1734378361672,0.08310875,106390.0,106380.0,0.0189704]
[1734378362092,0.81703839,106400.0,106380.0,0.0189704]
[1734378362307,0.86558398,106400.0,106380.0,0.0189704]
[1734378362514,0.86558398,106400.0,106380.0,0.0377704]
[1734378362935,1.03788524,106400.0,106380.0,0.0001724]
[1734378363352,1.03788524,106400.0,106380.0,0.0189724]
[1734378363562,0.84990724,106400.0,106380.0,0.0377714]
[1734378363776,0.84990724,106400.0,106380.0,0.0189714]
[1734378363777,0.08310875,106390.0,106380.0,0.0189714]
[1734378363983,0.67905839,106400.0,106380.0,0.0377704]
[1734378364196,0.67905839,106400.0,106380.0,0.0565694]
[1734378364422,0.67905839,106400.0,106380.0,0.0377704]
[1734378364630,0.68768771,106390.0,106380.0,0.0001724]
[1734378364837,0.9956561,106390.0,106380.0,0.0001724]
[1734378365051,1.15244404,106390.0,106380.0,0.0001724]
[1734378365271,1.19399705,106390.0,106380.0,0.0001724]
[1734378365487,1.01629831,106390.0,106380.0,0.0001724]
[1734378365695,0.31035126,106360.0,106340.0,0.0189786]
[1734378365913,0.5837802,106360.0,106340.0,0.0377846]
[1734378366134,0.45464996,106350.0,106340.0,0.0001726]
[1734378366359,0.53772124,106350.0,106340.0,0.0001726]
[1734378366572,1.01863596,106350.0,106340.0,0.0001726]
[1734378366784,0.79498647,106350.0,106340.0,0.0001726]
[1734378366994,1.04420032,106350.0,106340.0,0.00073847]
[1734378367247,0.92189906,106350.0,106340.0,0.00073847]
[1734378367456,1.34420032,106350.0,106330.0,0.0001726]
[1734378367678,1.16355701,106340.0,106330.0,0.0001726]
[1734378367886,0.87943196,106340.0,106330.0,0.0001726]
[1734378368102,0.188111,106320.0,106290.0,0.11523]
[1734378368314,0.80045509,106320.0,106300.0,0.018814]
[1734378368533,0.12230126,106310.0,106290.0,0.018815]
[1734378368742,0.85047209,106320.0,106290.0,0.03763]
[1734378368970,0.12230126,106310.0,106290.0,0.03763]
[1734378369189,0.08305205,106310.0,106290.0,0.03763]
[1734378369394,1.01657319,106320.0,106290.0,0.056445]
[1734378369613,0.85046909,106320.0,106290.0,0.03763]
[1734378369829,1.41232932,106320.0,106290.0,0.03779966]
[1734378370035,0.08305205,106310.0,106290.0,0.03779966]
[1734378370259,0.27118105,106310.0,106290.0,0.03779966]
[1734378370486,0.188129,106310.0,106290.0,0.03779966]
[1734378370696,0.31043026,106310.0,106290.0,0.03779966]
[1734378370912,0.12230126,106300.0,106290.0,0.00016966]
[1734378371141,0.68722801,106310.0,106290.0,0.01898566]
[1734378371476,0.87537301,106310.0,106290.0,0.00016966]
[1734378371681,0.32230126,106300.0,106290.0,0.00016966]
[1734378371886,0.41659196,106300.0,106290.0,0.00016966]
[1734378372090,1.01976597,106300.0,106290.0,0.00016966]
[1734378373078,1.10281802,106300.0,106290.0,0.00016966]
[1734378373461,1.01976597,106300.0,106290.0,0.00016966]
[1734378373920,0.36046526,106290.0,106280.0,4.157e-05]
[1734378374097,0.36046526,106290.0,106280.0,0.0001698]
[1734378374340,0.98892622,106290.0,106280.0,0.0001698]
[1734378374949,1.06122622,106290.0,106280.0,0.0001698]
[1734378375124,1.01122622,106290.0,106280.0,0.0001698]
[1734378375509,0.426372,106280.0,106260.0,0.018821]
[1734378375692,0.42168152,106270.0,106250.0,0.00016955]
[1734378375889,0.188217,106260.0,106250.0,0.00016955]
[1734378376795,0.37168852,106260.0,106250.0,0.00016955]
[1734378378206,0.46597922,106260.0,106250.0,0.00016955]
[1734378379558,0.50802022,106270.0,106250.0,0.00016955]
[1734378379759,0.238208,106270.0,106250.0,0.00016955]
[1734378380179,0.70087837,106270.0,106250.0,0.00016955]
[1734378380397,0.188217,106260.0,106250.0,0.00016955]
[1734378381506,0.83338942,106270.0,106250.0,0.00016955]
[1734378381720,0.83338842,106270.0,106250.0,0.00016955]
[1734378382540,0.188217,106260.0,106250.0,0.00016955]
[1734378382808,0.37071905,106270.0,106250.0,0.00016955]
[1734378383008,0.74240057,106270.0,106250.0,0.00016955]
[1734378383319,0.93061057,106270.0,106250.0,0.00016955]
[1734378383474,0.74240057,106270.0,106250.0,0.00016955]
[1734378383879,0.83657583,106270.0,106250.0,0.00016955]
[1734378384171,1.02478883,106270.0,106250.0,0.00016955]
[1734378384350,0.93061357,106270.0,106250.0,0.00016955]
[1734378384691,0.96823857,106270.0,106250.0,0.00016955]
[1734378384895,0.188217,106260.0,106250.0,0.00016955]
[1734378385509,0.188217,106260.0,106230.0,0.0484726]
[1734378385707,0.188217,106260.0,106230.0,0.142933]
[1734378386531,0.376446,106260.0,106230.0,0.142933]
[1734378386747,0.188217,106260.0,106230.0,0.142933]
[1734378386943,0.376445,106260.0,106230.0,0.142933]
[1734378387380,0.564673,106260.0,106230.0,0.0486423]
[1734378387991,0.188237,106250.0,106230.0,0.0486423]
[1734378388564,0.37648,106250.0,106230.0,0.0486423]
[1734378388968,0.37648,106250.0,106210.0,0.1112576]
[1734378389168,0.37664945,106250.0,106210.0,0.0942907]
[1734378390020,0.18840645,106250.0,106210.0,0.13155462]
[1734378390236,0.00016945,106250.0,106210.0,0.13155462]
[1734378390432,0.00016945,106250.0,106220.0,0.0942907]
[1734378391354,0.18840445,106250.0,106220.0,0.0942907]
[1734378391535,0.56011797,106250.0,106210.0,0.03726392]
[1734378391741,0.56011797,106250.0,106210.0,0.13155462]
[1734378391742,0.37664645,106250.0,106210.0,0.13155462]
[1734378391970,0.37664645,106250.0,106220.0,0.0801]
[1734378392387,0.00016945,106250.0,106230.0,0.0942907]
[1734378393012,0.00016945,106250.0,106230.0,0.1409907]
[1734378393248,0.00016945,106250.0,106240.0,0.0762]
[1734378393449,0.00016945,106250.0,106240.0,0.1704907]
[1734378394512,0.00016945,106250.0,106240.0,0.0762]
[1734378394727,0.00016945,106250.0,106220.0,0.16790406]
[1734378394938,0.00016945,106250.0,106220.0,0.26219476]
[1734378395359,0.18364097,106250.0,106220.0,0.26219476]
[1734378395564,0.00016945,106250.0,106220.0,0.26219476]
[1734378396594,0.12254274,106250.0,106220.0,0.26219476]
[1734378397003,0.00016945,106250.0,106220.0,0.26219476]
[1734378398469,0.00016945,106250.0,106230.0,0.0942907]
[1734378400097,0.00016945,106250.0,106220.0,0.16790406]
[1734378400306,0.00016945,106250.0,106220.0,0.26219476]
[1734378400724,0.00016945,106250.0,106220.0,0.26228126]
[1734378400934,0.00034245,106250.0,106220.0,0.26228126]
[1734378401366,0.00034245,106250.0,106230.0,0.21666399]
[1734378401574,0.00034245,106250.0,106240.0,0.0755]
[1734378401782,0.00034245,106250.0,106240.0,0.1697907]
[1734378404064,0.00034245,106250.0,106240.0,0.34216399]
[1734378404280,4.5e-07,106250.0,106240.0,0.53906399]
[1734378405352,4.5e-07,106250.0,106240.0,0.57788193]
[1734378405976,0.004886,106310.0,106280.0,0.049]
[1734378406189,0.02897157,106300.0,106290.0,0.1709907]
[1734378406424,0.44309997,106320.0,106270.0,0.0767]
[1734378406635,0.02896326,106310.0,106280.0,0.0942907]
[1734378406854,0.02896326,106300.0,106280.0,0.0942907]
[1734378407076,0.02896326,106310.0,106280.0,0.0942907]
[1734378407296,0.02896358,106300.0,106280.0,0.0942907]
[1734378408392,0.02896358,106300.0,106270.0,0.08894102]
[1734378408600,0.00016989,106310.0,106270.0,0.18323172]
[1734378409449,0.20667659,106310.0,106270.0,0.18323172]
[1734378409665,0.20758064,106310.0,106280.0,0.0942907]
[1734378409870,0.08313419,106310.0,106280.0,0.21666399]
[1734378410292,0.00016989,106310.0,106280.0,0.21666399]
[1734378410470,0.20758064,106310.0,106280.0,0.21666399]
[1734378410702,0.30187134,106310.0,106270.0,0.03876747]
[1734378410912,0.81447529,106300.0,106270.0,0.03876747]
[1734378411132,0.238164,106290.0,106240.0,0.17137329]
[1734378411355,0.0829643,106280.0,106250.0,0.0942907]
[1734378411560,0.37333935,106280.0,106250.0,0.0942907]
[1734378411762,0.20741075,106270.0,106250.0,0.0942907]
[1734378412395,0.20741075,106270.0,106260.0,0.46984658]
[1734378412610,0.37333935,106290.0,106260.0,0.56796168]
[1734378412862,0.18859475,106300.0,106290.0,0.15]
[1734378413064,0.29037505,106310.0,106290.0,0.36666399]
[1734378413272,0.20741075,106320.0,106290.0,0.15]
[1734378413273,0.00034286,106300.0,106290.0,0.15]
[1734378413477,0.00034286,106300.0,106290.0,0.27237329]
[1734378414315,0.00034286,106300.0,106290.0,0.36666399]
[1734378415222,8.6e-07,106300.0,106290.0,0.48903728]
[1734378416729,8.6e-07,106300.0,106290.0,0.36666399]
[1734378417350,8.6e-07,106300.0,106290.0,0.48903728]
[1734378417775,8.6e-07,106300.0,106290.0,0.36666399]
[1734378419645,8.6e-07,106300.0,106290.0,0.48903728]
[1734378419848,8.6e-07,106300.0,106290.0,0.36666399]
[1734378420071,8.6e-07,106300.0,106290.0,0.40411259]
[1734378422530,8.6e-07,106300.0,106290.0,0.1317393]
[1734378422733,8.6e-07,106300.0,106290.0,0.0374486]
[1734378423068,8.6e-07,106300.0,106280.0,0.0751865]
[1734378423069,8.6e-07,106300.0,106280.0,8.65e-05]
[1734378423266,8.6e-07,106300.0,106280.0,0.0943772]
[1734378423491,8.6e-07,106300.0,106280.0,0.25526]
[1734378424290,0.00017386,106300.0,106290.0,0.12237329]
[1734378424723,0.00017386,106300.0,106280.0,0.25526]
[1734378427503,0.00017386,106300.0,106280.0,0.03859601]
[1734378427775,0.6104395,106300.0,106280.0,8.65e-05]
[1734378428033,0.01729665,106290.0,106250.0,0.16078327]
[1734378428285,0.01729665,106290.0,106260.0,0.0942907]
[1734378428689,0.99297304,106290.0,106250.0,0.03840998]
[1734378428888,0.20547865,106280.0,106250.0,0.0942907]
[1734378429107,0.39366865,106280.0,106230.0,0.17017329]
[1734378429295,0.39366865,106280.0,106240.0,0.21666399]
[1734378429296,0.01729665,106270.0,106240.0,0.21666399]
[1734378429641,0.20549865,106270.0,106240.0,0.0942907]
[1734378430042,0.12237329,106260.0,106240.0,0.0942907]
[1734378430292,0.13966994,106260.0,106240.0,0.0942907]
[1734378430503,0.12237329,106260.0,106230.0,0.03890987]
[1734378430708,0.12237329,106250.0,106230.0,0.0942907]
[1734378431021,0.12237329,106240.0,106220.0,8.65e-05]
[1734378431238,0.12237329,106230.0,106220.0,8.65e-05]
[1734378431463,0.12237329,106230.0,106220.0,0.00065154]
[1734378433582,0.24474658,106230.0,106220.0,0.00065154]
[1734378433793,0.73054571,106230.0,106220.0,0.00065154]
[1734378434249,0.76323901,106230.0,106220.0,0.00065154]
[1734378434460,0.91323901,106230.0,106220.0,0.00065154]
[1734378434665,0.91153901,106230.0,106220.0,0.00065154]
[1734378434893,1.03697368,106230.0,106220.0,0.00065154]
[1734378435112,0.91243687,106230.0,106220.0,0.00065154]
[1734378435325,0.68305258,106210.0,106200.0,8.64e-05]
[1734378435579,0.77734328,106210.0,106200.0,8.64e-05]
[1734378435790,0.661323,106200.0,106190.0,8.65e-05]
[1734378435998,0.70036028,106200.0,106190.0,8.65e-05]
[1734378436221,1.12325142,106200.0,106190.0,8.65e-05]
[1734378437054,1.20618101,106200.0,106190.0,8.65e-05]
[1734378437263,1.59060984,106200.0,106190.0,8.65e-05]
[1734378437467,0.62215986,106190.0,106180.0,0.00015159]
[1734378437670,0.68945056,106190.0,106180.0,0.00015159]
[1734378438095,0.721464,106190.0,106180.0,0.00015159]
[1734378438341,0.72023441,106190.0,106180.0,0.00015159]
[1734378438547,0.92755839,106190.0,106180.0,0.00015159]
[1734378438781,1.22755839,106190.0,106180.0,0.00032059]
[1734378438991,1.02023441,106190.0,106180.0,0.00032059]
[1734378439798,1.11440967,106190.0,106180.0,0.00032059]
[1734378439955,1.02173365,106190.0,106180.0,0.00032059]
[1734378440135,0.188377,106170.0,106160.0,0.0001726]
[1734378440339,1.14043894,106170.0,106160.0,0.00034205]
[1734378440543,1.12330542,106170.0,106160.0,0.00034205]
[1734378440765,1.21748068,106170.0,106160.0,0.00034205]
[1734378442114,0.98948656,106170.0,106160.0,0.00034205]
[1734378442294,0.4826677,106170.0,106160.0,0.00034205]
[1734378442510,0.7826677,106170.0,106160.0,0.00034205]
[1734378442743,0.05,106180.0,106160.0,0.00034205]
[1734378442913,0.377753,106190.0,106150.0,0.18369247]
[1734378443117,0.188361,106180.0,106150.0,0.09446075]
[1734378443340,0.65628783,106190.0,106150.0,0.09446075]
[1734378443724,0.18836,106180.0,106150.0,0.09446075]
[1734378444347,0.18836,106180.0,106150.0,0.09546075]
[1734378444572,0.15,106170.0,106150.0,0.09546075]
[1734378444787,0.15,106170.0,106150.0,0.00117005]
[1734378444994,0.526775,106170.0,106150.0,0.00117005]
[1734378445201,0.526773,106170.0,106140.0,0.07629123]
[1734378445407,0.338385,106170.0,106140.0,0.17075203]
[1734378445612,0.526772,106170.0,106140.0,0.17075203]
[1734378445827,0.15,106170.0,106140.0,0.17075203]